[Event "WYCC 2018 O14"]
[Site "Halkidiki"]
[Date "2018.10.21"]
[Round "3"]
[White "Srihari L R"]
[Black "Nogerbek, Kazybek"]
[Result "0-1"]
[ECO "A05"]
[WhiteElo "2170"]
[BlackElo "2316"]
[Annotator "ChessBase"]
[PlyCount "138"]
[EventDate "2018.10.20"]
[EventType "swiss"]
[EventCountry "GRE"]
[SourceTitle "playchess.com"]
[Source "ChessBase"]
[SourceQuality "1"]
[TimeControl "40/5400+30:1800+30"]

1. Nf3 {[%emt 0:00:00]} Nf6 {[%emt 0:00:00]} 2. g3 {[%emt 0:04:49]} b5 {[%emt 0:00:19]} 3. e3 {[%emt 0:02:08]} a6 {[%emt 0:01:47]} 4. c4 {[%emt 0:00:10]} bxc4 {[%emt 0:01:28]} 5. Bxc4 {[%emt 0:00:07]} d5 {[%emt 0:00:50]} 6. Be2 {[%emt 0:00:23]} c5 {[%emt 0:02:21]} 7. O-O {[%emt 0:03:46]} Nbd7 {[%emt 0:08:31]} 8. d4 {[%emt 0:17:29]} e6 9. Nbd2 {[%emt 0:07:05]} Be7 {[%emt 0:05:50]} 10. b3 {[%emt 0:01:00]} O-O {[%emt 0:02:16]} 11. Bb2 {[%emt 0:03:27]} Bb7 {[%emt 0:02:04]} 12. Rc1 {[%emt 0:03:12]} Rc8 {[%emt 0:03:04]} 13. Ne5 {[%emt 0:02:01]} cxd4 {[%emt 0:02:42]} 14. exd4 {[%emt 0:00:12]} Qa5 {[%emt 0:03:44]} 15. a4 {[%emt 0:11:46]} Rxc1 {[%emt 0:05:41]} 16. Qxc1 {[%emt 0:00:57]} Rc8 {[%emt 0:00:37]} 17. Qd1 {[%emt 0:00:38]} Nxe5 {[%emt 0:03:48]} 18. dxe5 {[%emt 0:00:16]} Nd7 {[%emt 0:00:12]} 19. Nf3 {[%emt 0:03:40]} Nc5 {[%emt 0:05:32]} 20. Nd4 {[%emt 0:07:38]} Qb4 {[%emt 0:06:47]} 21. Ba1 {[%emt 0:06:21]} Ne4 {[%emt 0:07:10]} 22. Qd3 {[%emt 0:02:20]} Bc5 {[%emt 0:03:37]} 23. Rb1 {[%emt 0:07:48]} Ba7 {[%emt 0:02:49]} 24. Bf3 {[%emt 0:12:18]} Nd2 {[%emt 0:06:39]} 25. Rd1 {[%emt 0:00:42]} Bxd4 {[%emt 0:00:13]} 26. Bxd4 {[%emt 0:00:20]} Qxd4 {[%emt 0:00:05]} 27. Qxd2 {[%emt 0:00:36]} Qxe5 {[%emt 0:00:12]} 28. Rc1 {[%emt 0:00:09]} Rxc1+ {[%emt 0:02:42]} 29. Qxc1 {[%emt 0:00:02]} Qd6 {[%emt 0:00:11]} 30. Qd2 {[%emt 0:03:02]} e5 {[%emt 0:01:20]} 31. b4 {[%emt 0:00:15]} h6 {[%emt 0:02:09]} 32. a5 {[%emt 0:00:44]} Kf8 {[%emt 0:04:00]} 33. Kf1 {[%emt 0:00:29]} Ke7 {[%emt 0:00:11]} 34. Ke1 {[%emt 0:00:04]} e4 {[%emt 0:00:47]} 35. Be2 {[%emt 0:00:07]} d4 {[%emt 0:01:19]} 36. b5 {[%emt 0:01:12]} d3 {[%emt 0:02:45]} 37. bxa6 {[%emt 0:00:10]} Bxa6 {[%emt 0:00:04]} 38. Bd1 {[%emt 0:00:06]} Qc5 {[%emt 0:01:37]} 39. g4 {[%emt 0:01:04]} g5 {[%emt 0:01:39]} 40. h3 {[%emt 0:00:00]} Kd6 {[%emt 0:00:00]} 41. Kf1 {[%emt 0:02:29]} Kc6 {[%emt 0:10:53]} 42. Qb2 {[%emt 0:09:56]} Qxa5 {[%emt 0:03:23]} 43. Qf6+ {[%emt 0:00:13]} Kb7 {[%emt 0:02:03]} 44. Qe7+ {[%emt 0:04:02]} Qc7 {[%emt 0:03:06]} 45. Qxe4+ {[%emt 0:00:30]} Qc6 {[%emt 0:00:44]} 46. Qe7+ {[%emt 0:11:09]} Kb6 {[%emt 0:00:27]} 47. Qe3+ {[%emt 0:02:14]} Qc5 {[%emt 0:00:24]} 48. Ke1 {[%emt 0:01:04]} Qxe3+ {[%emt 0:02:13]} 49. fxe3 {[%emt 0:00:03]} Kc5 {[%emt 0:06:16]} 50. Kd2 {[%emt 0:02:31]} Kd5 {[%emt 0:01:50]} 51. Bf3+ {[%emt 0:00:24]} Ke5 {[%emt 0:00:06]} 52. Kc3 {[%emt 0:00:25]} d2 {[%emt 0:02:11]} 53. Kxd2 {[%emt 0:00:11]} Bf1 {[%emt 0:00:05]} 54. h4 {[%emt 0:01:18]} gxh4 {[%emt 0:00:18]} 55. Ke1 {[%emt 0:00:11]} Bh3 {[%emt 0:00:35]} 56. Kf2 {[%emt 0:02:07]} Kf6 {[%emt 0:00:05]} 57. Bd1 {[%emt 0:00:33]} Kg5 {[%emt 0:00:05]} 58. Bb3 {[%emt 0:00:28]} f6 {[%emt 0:00:06]} 59. Bc2 {[%emt 0:00:36]} Bxg4 {[%emt 0:00:06]} 60. Kg2 {[%emt 0:00:24]} Bf5 {[%emt 0:00:55]} 61. Bd1 {[%emt 0:00:09]} Kg6 {[%emt 0:00:15]} 62. Bb3 {[%emt 0:00:50]} Bg4 {[%emt 0:00:05]} 63. Bc2+ {[%emt 0:00:30]} Kf7 {[%emt 0:00:05]} 64. Kf2 {[%emt 0:00:38]} Ke6 {[%emt 0:00:06]} 65. Bd3 {[%emt 0:00:30]} Ke5 {[%emt 0:00:32]} 66. Bf1 {[%emt 0:00:12]} Bf5 {[%emt 0:00:27]} 67. Bg2 h3 {[%emt 0:00:22]} 68. Bf1 {[%emt 0:01:09]} h2 {[%emt 0:00:08]} 69. Kg2 {[%emt 0:00:06]} Bh3+ {[%emt 0:00:01]} 0-1

[Event "WYCC 2018 O14"]
[Site "Halkidiki"]
[Date "2018.10.21"]
[Round "3"]
[White "Mishra, Abhimanyu"]
[Black "Cardoso Cardoso, Jose Gabriel"]
[Result "0-1"]
[ECO "B90"]
[WhiteElo "2149"]
[BlackElo "2313"]
[Annotator "NA"]
[PlyCount "146"]
[EventDate "2018.10.20"]
[EventType "swiss"]
[EventCountry "GRE"]
[SourceTitle "playchess.com"]
[Source "ChessBase"]
[SourceQuality "1"]
[TimeControl "40/5400+30:1800+30"]

1. e4 {[%emt 0:00:00]} c5 {[%emt 0:00:15]} 2. Nf3 {[%emt 0:00:00]} d6 {[%emt 0:00:07]} 3. d4 {[%emt 0:00:00]} cxd4 {[%emt 0:00:47]} 4. Nxd4 {[%emt 0:00:00]} Nf6 {[%emt 0:00:05]} 5. Nc3 {[%emt 0:00:00]} a6 {[%emt 0:00:10]} 6. h3 {[%emt 0:00:23]} e6 {[%emt 0:00:57]} 7. g4 {[%emt 0:00:25]} h6 {[%emt 0:00:09]} 8. Bg2 {[%emt 0:02:12]} g5 {[%emt 0:00:34]} 9. Be3 {[%emt 0:04:10] B81: Sicilian Scheveningen: Keres Attack} Nbd7 {[%emt 0:00:53]} 10. Qe2 {[%emt 0:04:38]} Ne5 {[%emt 0:01:33]} 11. O-O-O {[%emt 0:05:00]} Nfd7 {[%emt 0:01:54]} 12. h4 {[%emt 0:07:28]} Rg8 {[%emt 0:01:17]} 13. hxg5 {[%emt 0:02:10] LiveBook: 5 Games} hxg5 {[%emt 0:00:11]} 14. Rh5 {[%emt 0:06:43]} (14. Kb1 b5 15. f4 gxf4 16. Bxf4 Bb7 {½-½ (56) Karjakin,S (2773)-Mamedyarov,S (2801) Saint Louis 2018}) 14... b5 {[%emt 0:09:31]} 15. Rdh1 {[%emt 0:08:55] [#]} Bb7 $146 {[%emt 0:19:10]} ({Predecessor:} 15... Qf6 16. Nf3 Nxf3 17. Qxf3 Qxf3 18. Bxf3 Ne5 {½-½ (18) Mihok,O (2443)-Flumbort,A (2503) Budapest 2012}) 16. Rh8 {[%emt 0:11:31]} Rxh8 {[%emt 0:04:34]} 17. Rxh8 {[%emt 0:00:04]} Nc4 {[%emt 0:12:54]} 18. Kb1 {[%emt 0:15:57]} Nxe3 {[%emt 0:09:29]} 19. Qxe3 {[%emt 0:01:46]} Qf6 {[%emt 0:00:57]} 20. Rg8 {[%emt 0:07:42]} Ne5 {[%emt 0:00:54]} 21. Nf3 {[%emt 0:03:15]} Nxf3 {[%emt 0:05:35]} 22. Bxf3 {[%emt 0:05:41]} O-O-O {[%emt 0:00:12]} 23. Be2 {[%emt 0:00:59]} Bg7 {[%emt 0:05:28]} 24. Rxd8+ {[%emt 0:00:41]} Qxd8 {[%emt 0:00:02]} 25. f3 {[%emt 0:00:54]} Be5 {[%emt 0:00:46]} 26. a3 {[%emt 0:02:21]} Qf6 {[%emt 0:04:28]} 27. Qd3 {[%emt 0:01:27]} Kd7 {[%emt 0:02:50]} 28. Qe3 {[%emt 0:02:01]} Bd4 {[%emt 0:00:17]} 29. Qd3 {[%emt 0:01:09]} Ke7 {[%emt 0:00:27]} 30. Nd1 {[%emt 0:01:43]} Qe5 {[%emt 0:01:58]} 31. c3 {[%emt 0:01:32]} Bc5 {[%emt 0:00:24]} 32. c4 {[%emt 0:00:30]} b4 {[%emt 0:02:39]} 33. a4 {[%emt 0:01:11]} Bc6 {[%emt 0:01:17]} 34. Qc2 {[%emt 0:00:42]} a5 {[%emt 0:00:43]} 35. b3 {[%emt 0:01:32]} Qd4 {[%emt 0:03:02]} 36. Nb2 {[%emt 0:00:52]} Qg1+ {[%emt 0:01:40]} 37. Qc1 {[%emt 0:00:27]} f5 {[%emt 0:03:59]} 38. exf5 {[%emt 0:00:56]} exf5 {[%emt 0:00:12]} 39. Qxg1 {[%emt 0:00:14]} Bxg1 {[%emt 0:00:02]} 40. Nd3 {[%emt 0:00:00]} Kf6 {[%emt 0:00:00]} 41. Kc2 {[%emt 0:09:06]} Be3 {[%emt 0:01:46]} 42. Kd1 {[%emt 0:05:10]} fxg4 {[%emt 0:03:04]} 43. fxg4 {[%emt 0:00:06]} Ke6 {[%emt 0:00:36]} 44. Kc2 {[%emt 0:04:05]} Be4 45. Kb2 {[%emt 0:04:07]} d5 {[%emt 0:02:18]} 46. Kc2 {[%emt 0:01:17]} Bd4 {[%emt 0:00:13]} 47. cxd5+ {[%emt 0:03:37]} Kxd5 {[%emt 0:00:17]} 48. Kd2 {[%emt 0:00:57]} Bh1 {[%emt 0:01:48]} 49. Bd1 {[%emt 0:02:52]} Ke4 {[%emt 0:00:36]} 50. Bc2 {[%emt 0:01:21]} Kf3 {[%emt 0:00:26]} 51. Bd1+ {[%emt 0:00:37]} Kg3 {[%emt 0:00:09]} 52. Nc1 {[%emt 0:00:30]} Be5 {[%emt 0:01:56]} 53. Nd3 {[%emt 0:00:46]} Bf4+ {[%emt 0:00:46]} 54. Nxf4 {[%emt 0:00:23]} Kxf4 {[%emt 0:01:17]} 55. Bc2 {[%emt 0:00:50]} Be4 {[%emt 0:00:05]} 56. Bd1 {[%emt 0:00:09]} Bf3 {[%emt 0:00:08]} 57. Bc2 {[%emt 0:00:19]} Bxg4 {[%emt 0:00:01]} 58. Bd3 {[%emt 0:00:47]} Be6 {[%emt 0:00:04]} 59. Bc2 {[%emt 0:00:43]} g4 {[%emt 0:00:05]} 60. Ke2 {[%emt 0:00:16]} g3 {[%emt 0:00:04]} 61. Kf1 {[%emt 0:00:44]} Bd5 {[%emt 0:00:10]} 62. Kg1 {[%emt 0:00:21]} Ke3 {[%emt 0:00:06]} 63. Kf1 {[%emt 0:00:28]} Kd2 {[%emt 0:00:14]} 64. Bf5 {[%emt 0:00:11]} Bxb3 {[%emt 0:00:06]} 65. Kg2 {[%emt 0:00:12]} Bxa4 {[%emt 0:00:04]} 66. Kxg3 {[%emt 0:00:11]} Bc2 {[%emt 0:00:06]} 67. Be6 {[%emt 0:00:08]} b3 {[%emt 0:00:06]} 68. Kf4 {[%emt 0:00:10]} a4 {[%emt 0:00:04]} 69. Ke5 {[%emt 0:00:13]} a3 {[%emt 0:00:02]} 70. Kd4 {[%emt 0:00:16]} a2 {[%emt 0:00:04]} 71. Kc5 {[%emt 0:00:08]} a1=Q {[%emt 0:00:09]} 72. Kd6 {[%emt 0:00:06]} b2 {[%emt 0:00:05]} 73. Bd5 {[%emt 0:00:05]} b1=Q 0-1

[Event "WYCC 2018 O14"]
[Site "Halkidiki"]
[Date "2018.10.21"]
[Round "3"]
[White "Krallis, Christos"]
[Black "Van Dael, Siem"]
[Result "1-0"]
[ECO "A15"]
[WhiteElo "2139"]
[BlackElo "2202"]
[Annotator "NA"]
[PlyCount "53"]
[EventDate "2018.10.20"]
[EventType "swiss"]
[EventCountry "GRE"]
[SourceTitle "playchess.com"]
[Source "ChessBase"]
[SourceQuality "1"]
[TimeControl "40/5400+30:1800+30"]

1. c4 {[%emt 0:01:20]} Nf6 {[%emt 0:00:00]} 2. g3 {[%emt 0:00:06]} g6 {[%emt 0:00:00]} 3. Bg2 {[%emt 0:00:05]} Bg7 {[%emt 0:00:00]} 4. Nc3 {[%emt 0:00:09]} O-O {[%emt 0:00:00]} 5. e4 {[%emt 0:00:20]} d6 {[%emt 0:00:00]} 6. Nge2 {[%emt 0:00:07]} c5 {[%emt 0:00:00]} 7. O-O {[%emt 0:00:16]} Nc6 {[%emt 0:00:00]} 8. d3 {[%emt 0:00:50]} a6 {[%emt 0:00:00]} 9. a3 {[%emt 0:00:07]} Rb8 {[%emt 0:00:06]} 10. Rb1 {[%emt 0:00:04]} Ne8 {[%emt 0:00:41] A36: Symmetrical English vs ...g6: 4 Bg2 Bg7} (10... b5 11. cxb5 axb5 12. b4 cxb4 13. axb4 e5 14. Be3 Be6 15. d4 Bc4 16. d5 Ne7 17. f3 Nd7 18. Qd2 f5 19. Ra1 Nf6 20. Bh3 Ra8 21. Rfc1 h5 22. Rxa8 Qxa8 {0-1 (63) Granda Zuniga,J (2646)-Lopez Martinez,J (2552) Lorca 2016}) 11. b4 {[%emt 0:03:05]} cxb4 {[%emt 0:00:26]} 12. axb4 {[%emt 0:00:06]} b5 {[%emt 0:00:04]} 13. cxb5 {[%emt 0:01:39]} axb5 {[%emt 0:00:06]} 14. Be3 {[%emt 0:02:36]} Nc7 {[%emt 0:02:03]} 15. f4 $146 {[%emt 0:04:58]} ({Predecessor:} 15. Qd2 Bg4 16. h3 Bxe2 17. Nxe2 e5 18. f4 exf4 19. gxf4 d5 20. Bc5 Re8 21. exd5 Nxd5 {1-0 (40) Soares,A (2209)-Barreto Filho,C (2300) Natal 2012}) 15... e5 {[%emt 0:03:27]} 16. d4 {[%emt 0:14:07]} Na6 {[%emt 0:07:56]} 17. dxe5 {[%emt 0:03:10]} dxe5 {[%emt 0:00:13]} 18. Nd5 {[%emt 0:00:24]} Be6 {[%emt 0:16:42]} 19. Qd2 $14 {[%emt 0:01:23]} Re8 {[%emt 0:03:46]} 20. Rfd1 {[%emt 0:19:00]} Bxd5 {[%emt 0:01:32]} 21. exd5 {[%emt 0:02:06]} exf4 {[%emt 0:03:04]} 22. dxc6 {[%emt 0:15:45]} fxe3 {[%emt 0:01:12]} 23. Qa2 {[%emt 0:00:26]} Nxb4 {[%emt 0:24:09]} 24. Qb3 {[%emt 0:01:21]} Qf6 {[%emt 0:01:20]} 25. Rf1 {[%emt 0:00:06]} Qe5 {[%emt 0:00:05]} 26. Qxb4 {[%emt 0:04:14]} Red8 {[%emt 0:00:32]} 27. Qb3 {[%emt 0:02:14]} 1-0

[Event "WYCC 2018 O14"]
[Site "Halkidiki"]
[Date "2018.10.21"]
[Round "3"]
[White "Munshi, Aditya"]
[Black "Trushko, Andrii"]
[Result "1-0"]
[ECO "C03"]
[WhiteElo "2133"]
[BlackElo "1906"]
[Annotator "NA"]
[PlyCount "85"]
[EventDate "2018.10.20"]
[EventType "swiss"]
[EventCountry "GRE"]
[SourceTitle "playchess.com"]
[Source "ChessBase"]
[SourceQuality "1"]
[TimeControl "40/5400+30:1800+30"]

1. e4 {[%emt 0:00:00]} e6 {[%emt 0:00:00]} 2. d4 {[%emt 0:00:00]} d5 {[%emt 0:00:16]} 3. Nd2 {[%emt 0:00:00]} Be7 {[%emt 0:00:58]} 4. Ngf3 b6 5. Bd3 {[%emt 0:05:21]} Bb7 {[%emt 0:02:32]} 6. e5 {[%emt 0:04:25]} c5 {[%emt 0:04:32]} 7. c3 {[%emt 0:00:22]} Qd7 {[%emt 0:05:56]} 8. Nf1 {[%emt 0:02:30]} Ba6 {[%emt 0:00:34]} 9. Ng3 {[%emt 0:05:50]} Bxd3 $14 {[%emt 0:01:47]} 10. Qxd3 {[%emt 0:01:57]} Nc6 {[%emt 0:08:51]} 11. O-O {[%emt 0:05:05]} c4 12. Qe3 {[%emt 0:03:49]} b5 {[%emt 0:01:46]} 13. Qf4 {[%emt 0:13:53]} a5 {[%emt 0:04:00]} 14. Qg4 {[%emt 0:10:01]} g6 {[%emt 0:00:07]} 15. h4 {[%emt 0:06:52]} a4 {[%emt 0:09:11]} 16. h5 {[%emt 0:03:40]} Bf8 {[%emt 0:03:52]} 17. Qh3 {[%emt 0:10:21]} Bh6 {[%emt 0:01:23]} 18. Rb1 {[%emt 0:08:58]} Na5 {[%emt 0:10:03]} 19. Nh2 {[%emt 0:01:32]} O-O-O {[%emt 0:19:52]} 20. Nf3 {[%emt 0:04:26]} Bxc1 {[%emt 0:01:37]} 21. Rfxc1 {[%emt 0:01:45]} Nh6 {[%emt 0:00:32]} 22. Nd2 {[%emt 0:00:53]} Nf5 {[%emt 0:00:11]} 23. Nxf5 {[%emt 0:00:50]} gxf5 {[%emt 0:00:05]} 24. b3 {[%emt 0:00:40]} axb3 {[%emt 0:04:00]} 25. axb3 {[%emt 0:00:17]} Nxb3 {[%emt 0:00:25]} 26. Nxb3 {[%emt 0:00:07]} cxb3 {[%emt 0:00:02]} 27. Rxb3 {[%emt 0:04:03]} Kc7 {[%emt 0:00:20]} 28. Rcb1 {[%emt 0:01:05]} Rb8 {[%emt 0:02:44]} 29. Qd3 {[%emt 0:00:33]} Rhc8 {[%emt 0:00:30]} 30. Rxb5 {[%emt 0:00:54]} Rxb5 {[%emt 0:00:04]} 31. Rxb5 {[%emt 0:00:46]} Kd8 {[%emt 0:00:10]} 32. Rb6 {[%emt 0:01:56]} Ke8 {[%emt 0:01:35]} 33. Qg3 {[%emt 0:02:13]} Qc7 {[%emt 0:04:43]} 34. Rb3 {[%emt 0:00:46]} h6 {[%emt 0:00:56]} 35. Qg8+ {[%emt 0:00:53]} Ke7 {[%emt 0:00:12]} 36. Qg7 {[%emt 0:00:09]} Qd7 {[%emt 0:03:59]} 37. Qf6+ {[%emt 0:00:54]} Ke8 {[%emt 0:00:04]} 38. Qh8+ {[%emt 0:00:14]} Ke7 {[%emt 0:00:04]} 39. Qf6+ {[%emt 0:00:09]} Ke8 {[%emt 0:00:04]} 40. Qxh6 Qa4 {[%emt 0:00:00]} 41. Rb7 {[%emt 0:04:29]} Qa3 {[%emt 0:01:27]} 42. Qh8+ {[%emt 0:00:35]} Qf8 {[%emt 0:00:05]} 43. Qf6 {[%emt 0:00:10]} 1-0

[Event "WYCC 2018 O14"]
[Site "Halkidiki"]
[Date "2018.10.21"]
[Round "3"]
[White "Risteski, Emil"]
[Black "Kouvidis, Ioannis"]
[Result "1-0"]
[ECO "B40"]
[WhiteElo "2120"]
[BlackElo "1896"]
[Annotator "NA"]
[PlyCount "41"]
[EventDate "2018.10.20"]
[EventType "swiss"]
[EventCountry "GRE"]
[SourceTitle "playchess.com"]
[Source "ChessBase"]
[SourceQuality "1"]
[TimeControl "40/5400+30:1800+30"]

1. e4 {[%emt 0:00:00]} c5 {[%emt 0:00:00]} 2. Nf3 {[%emt 0:00:00]} e6 {[%emt 0:00:00]} 3. d4 {[%emt 0:00:00]} cxd4 {[%emt 0:00:00]} 4. Nxd4 {[%emt 0:00:04]} Nf6 {[%emt 0:00:00]} 5. Nc3 {[%emt 0:00:04]} Nc6 6. Ndb5 {[%emt 0:08:30]} Bc5 {[%emt 0:00:08]} 7. Nd6+ {[%emt 0:02:27]} Ke7 {[%emt 0:00:02]} 8. Nxc8+ {[%emt 0:00:36]} Rxc8 {[%emt 0:00:09]} 9. Bd3 {[%emt 0:00:46]} h6 {[%emt 0:02:02]} 10. O-O {[%emt 0:01:10]} Re8 {[%emt 0:00:05]} 11. Kh1 {[%emt 0:08:34]} Kf8 {[%emt 0:00:13]} 12. f4 {[%emt 0:01:58]} d6 {[%emt 0:00:40]} 13. Qf3 {[%emt 0:01:28]} a6 14. Bd2 e5 {[%emt 0:25:40]} 15. Qh3 {[%emt 0:15:51]} Kg8 {[%emt 0:12:53]} 16. Rf3 {[%emt 0:07:35]} Qd7 {[%emt 0:03:37]} 17. f5 {[%emt 0:00:37]} Kh7 {[%emt 0:00:36]} 18. Qh4 {[%emt 0:00:46]} Qe7 {[%emt 0:01:11]} 19. Bg5 {[%emt 0:03:29]} Qf8 {[%emt 0:03:42]} 20. Bxf6 {[%emt 0:00:30]} gxf6 {[%emt 0:00:02]} 21. Nd5 {[%emt 0:00:23]} 1-0

[Event "WYCC 2018 O14"]
[Site "Halkidiki"]
[Date "2018.10.21"]
[Round "3"]
[White "Buonanno, Raffaele"]
[Black "Ngo, Duc Tri"]
[Result "0-1"]
[ECO "D11"]
[WhiteElo "2101"]
[BlackElo "1883"]
[Annotator "NA"]
[PlyCount "64"]
[EventDate "2018.10.20"]
[EventType "swiss"]
[EventCountry "GRE"]
[SourceTitle "playchess.com"]
[Source "ChessBase"]
[SourceQuality "1"]
[TimeControl "40/5400+30:1800+30"]

1. d4 {[%emt 0:00:00]} d5 {[%emt 0:01:42]} 2. c4 {[%emt 0:00:00]} c6 {[%emt 0:00:05]} 3. Nf3 Bf5 4. Nbd2 {[%emt 0:03:44]} e6 {[%emt 0:01:01]} 5. g3 {[%emt 0:00:24]} Nf6 {[%emt 0:02:04]} 6. Bg2 {[%emt 0:00:05]} Nbd7 {[%emt 0:00:51]} 7. O-O {[%emt 0:00:34]} Be7 {[%emt 0:00:12]} 8. b3 {[%emt 0:02:38]} O-O {[%emt 0:00:25]} 9. Bb2 {[%emt 0:03:22]} h6 {[%emt 0:00:08]} 10. Ne5 {[%emt 0:01:18]} a5 {[%emt 0:05:03]} 11. a3 {[%emt 0:05:36]} Qc7 {[%emt 0:08:21]} 12. Rc1 {[%emt 0:07:49]} Rfd8 13. e3 {[%emt 0:26:58]} Nxe5 {[%emt 0:04:02]} 14. dxe5 {[%emt 0:00:09]} Nd7 {[%emt 0:09:56]} 15. cxd5 {[%emt 0:00:25]} exd5 {[%emt 0:06:01]} 16. Nf3 {[%emt 0:01:35]} Be4 {[%emt 0:00:25]} 17. e6 {[%emt 0:01:39]} fxe6 {[%emt 0:00:10]} 18. Nd4 {[%emt 0:00:04]} Qe5 {[%emt 0:08:00]} 19. f4 {[%emt 0:02:50]} Qd6 {[%emt 0:03:22]} 20. Bxe4 {[%emt 0:02:28]} dxe4 {[%emt 0:02:27]} 21. Qg4 {[%emt 0:02:49]} Nf6 {[%emt 0:00:09]} 22. Qh3 {[%emt 0:04:30]} Kf7 {[%emt 0:01:34]} 23. g4 {[%emt 0:03:52]} c5 {[%emt 0:00:22]} 24. Nb5 {[%emt 0:01:57]} Qd3 {[%emt 0:00:18]} 25. Nc7 {[%emt 0:02:37]} Rac8 {[%emt 0:00:44]} 26. Be5 {[%emt 0:01:58]} Qe2 {[%emt 0:01:10]} 27. Bxf6 Bxf6 {[%emt 0:01:36]} 28. Rxc5 {[%emt 0:04:13]} Rd1 {[%emt 0:01:49]} 29. Rxd1 {[%emt 0:08:24]} Qxd1+ {[%emt 0:01:05]} 30. Kf2 {[%emt 0:00:18]} Rd8 {[%emt 0:00:32]} 31. g5 {[%emt 0:00:26]} Rd2+ {[%emt 0:00:07]} 32. Kg3 {[%emt 0:00:11]} Qg1+ {[%emt 0:00:03]} 0-1

[Event "WYCC 2018 O14"]
[Site "Halkidiki"]
[Date "2018.10.21"]
[Round "3"]
[White "Stremavicius, Pijus"]
[Black "Gines Esteo, Pedro Antonio"]
[Result "0-1"]
[ECO "B06"]
[WhiteElo "2024"]
[BlackElo "2288"]
[Annotator "NA"]
[PlyCount "90"]
[EventDate "2018.10.20"]
[EventType "swiss"]
[EventCountry "GRE"]
[SourceTitle "playchess.com"]
[Source "ChessBase"]
[SourceQuality "1"]
[TimeControl "40/5400+30:1800+30"]

1. d4 {[%emt 0:00:00]} d6 {[%emt 0:00:39]} 2. e4 {[%emt 0:00:00]} g6 {[%emt 0:00:36]} 3. Nc3 {[%emt 0:00:56]} Bg7 {[%emt 0:00:07]} 4. f4 {[%emt 0:00:02]} c6 {[%emt 0:06:46]} 5. Nf3 {[%emt 0:02:20]} d5 {[%emt 0:02:51]} 6. e5 {[%emt 0:00:40]} h5 {[%emt 0:02:36]} 7. Bd3 {[%emt 0:01:25]} Nh6 {[%emt 0:00:08]} 8. O-O {[%emt 0:00:45]} Bf5 {[%emt 0:07:07]} 9. Ne2 {[%emt 0:05:12]} Qb6 {[%emt 0:02:57]} 10. Be3 {[%emt 0:04:03]} Ng4 {[%emt 0:02:12]} 11. Bc1 {[%emt 0:03:54]} Bxd3 {[%emt 0:07:25]} 12. Qxd3 {[%emt 0:00:18]} e6 {[%emt 0:00:16]} 13. a4 {[%emt 0:02:17]} Bf8 {[%emt 0:02:06]} 14. h3 {[%emt 0:06:33]} Nh6 {[%emt 0:00:36]} 15. Be3 {[%emt 0:00:13]} Nf5 {[%emt 0:02:39]} 16. Bf2 {[%emt 0:00:05]} h4 $14 {[%emt 0:00:05]} 17. c4 {[%emt 0:02:33]} dxc4 {[%emt 0:08:57]} 18. Qxc4 {[%emt 0:01:47]} Na6 {[%emt 0:02:22]} 19. a5 {[%emt 0:03:22]} Qd8 {[%emt 0:07:46]} 20. Rfb1 {[%emt 0:04:54]} Be7 {[%emt 0:05:40]} 21. b4 {[%emt 0:01:20]} Nc7 {[%emt 0:02:02]} 22. Nc3 {[%emt 0:00:55]} a6 {[%emt 0:00:21]} 23. Nd2 {[%emt 0:01:58]} Kf8 {[%emt 0:03:58]} 24. Nb3 {[%emt 0:01:58]} Kg7 {[%emt 0:01:14]} 25. Rd1 {[%emt 0:02:41]} Rb8 {[%emt 0:02:50]} 26. Nc5 {[%emt 0:00:29]} Qc8 {[%emt 0:03:17]} 27. Rd3 {[%emt 0:03:19]} Rd8 {[%emt 0:01:33]} 28. Rb1 {[%emt 0:02:31]} Nd5 {[%emt 0:05:10]} 29. Nxd5 {[%emt 0:00:22]} Rxd5 {[%emt 0:00:51]} 30. Na4 {[%emt 0:00:29]} Qf8 {[%emt 0:06:43]} 31. Nb6 {[%emt 0:02:24]} Rdd8 {[%emt 0:00:19]} 32. Rf3 {[%emt 0:00:35]} Kh8 {[%emt 0:01:15]} 33. Rbb3 {[%emt 0:01:13]} Kh7 {[%emt 0:00:20]} 34. Rb1 {[%emt 0:00:29]} Qg7 {[%emt 0:02:47]} 35. Kh2 {[%emt 0:01:08]} Rg8 {[%emt 0:01:42]} 36. Rg1 {[%emt 0:00:21]} Rbd8 {[%emt 0:00:25]} 37. Na4 {[%emt 0:00:30]} Rd5 {[%emt 0:03:25]} 38. Nc3 {[%emt 0:00:11]} Rd7 {[%emt 0:00:35]} 39. Ne4 {[%emt 0:00:41]} Rgd8 {[%emt 0:00:34]} 40. Rd1 {[%emt 0:00:00]} Rd5 {[%emt 0:00:00]} 41. Nc3 {[%emt 0:01:32]} R5d7 {[%emt 0:06:57]} 42. Ne4 {[%emt 0:02:40]} Qf8 {[%emt 0:01:01]} 43. Rb3 {[%emt 0:00:12]} Kh8 {[%emt 0:03:02]} 44. Rdd3 {[%emt 0:00:53]} Qh6 {[%emt 0:00:35]} 45. Rb1 {[%emt 0:05:59]} Qxf4+ {[%emt 0:00:16]} 0-1